[Event "Titled Tuesday Blitz October 11 Early 2022"]
[White "Subelj, Jan"]
[Black "Durarbayli, Vasif"]
[WhiteFideId "14618583"]
[BlackFideId "13402935"]
[WhiteElo "2394"]
[BlackElo "2586"]
[Result "0-1"]
[Round "10"]
[TimeControl "180+1"]
[Date "2022.10.11"]
[WhiteClock "0:00:08"]
[BlackClock "0:00:11"]

1. e4 {[%clk 0:03:00]}  g6 {[%clk 0:02:58]} 2. d4 {[%clk 0:03:00]}  Bg7 {[%clk 0:02:59]} 3. c3 {[%clk 0:03:00]}  d6 {[%clk 0:02:59]} 4. Nf3 {[%clk 0:03:00]}  Nf6 {[%clk 0:02:59]} 5. Bd3 {[%clk 0:03:00]}  O-O {[%clk 0:02:59]} 6. h3 {[%clk 0:03:00]}  Nc6 {[%clk 0:02:59]} 7. O-O {[%clk 0:03:00]}  e5 {[%clk 0:03:00]} 8. Re1 {[%clk 0:03:00]}  h6 {[%clk 0:02:57]} 9. Nbd2 {[%clk 0:02:59]}  Nh5 {[%clk 0:02:53]} 10. Nc4 {[%clk 0:02:57]}  Kh7 {[%clk 0:02:32]} 11. Bc2 {[%clk 0:02:47]}  Bd7 {[%clk 0:02:22]} 12. a4 {[%clk 0:02:27]}  a5 {[%clk 0:02:18]} 13. Be3 {[%clk 0:02:18]}  Qc8 {[%clk 0:02:16]} 14. Qd2 {[%clk 0:02:12]}  exd4 {[%clk 0:02:05]} 15. Nxd4 {[%clk 0:02:07]}  Ne5 {[%clk 0:01:55]} 16. Qe2 {[%clk 0:01:47]}  Nxc4 {[%clk 0:01:21]} 17. Qxc4 {[%clk 0:01:44]}  Be5 {[%clk 0:01:18]} 18. Nf3 {[%clk 0:01:40]}  Be6 {[%clk 0:01:12]} 19. Qe2 {[%clk 0:01:38]}  Nf4 {[%clk 0:01:06]} 20. Qd2 {[%clk 0:01:38]}  Nxg2 {[%clk 0:00:51]} 21. Nxe5 {[%clk 0:01:22]}  Nxe1 {[%clk 0:00:50]} 22. Rxe1 {[%clk 0:01:19]}  dxe5 {[%clk 0:00:49]} 23. Bxh6 {[%clk 0:01:20]}  Rh8 {[%clk 0:00:37]} 24. Bg5 {[%clk 0:00:47]}  Kg8 {[%clk 0:00:36]} 25. h4 {[%clk 0:00:46]}  Kg7 {[%clk 0:00:22]} 26. f4 {[%clk 0:00:37]}  f6 {[%clk 0:00:19]} 27. f5 {[%clk 0:00:25]}  fxg5 {[%clk 0:00:18]} 28. Qxg5 {[%clk 0:00:25]}  Bf7 {[%clk 0:00:18]} 29. Bb3 {[%clk 0:00:23]}  Ra6 {[%clk 0:00:17]} 30. Bxf7 {[%clk 0:00:18]}  Kxf7 {[%clk 0:00:18]} 31. Rf1 {[%clk 0:00:19]}  Kg7 {[%clk 0:00:18]} 32. Qe7+ {[%clk 0:00:15]}  Kh6 {[%clk 0:00:13]} 33. Qg5+ {[%clk 0:00:15]}  Kh7 {[%clk 0:00:13]} 34. Qe7+ {[%clk 0:00:15]}  Kg8 {[%clk 0:00:12]} 35. f6 {[%clk 0:00:11]}  Qg4+ {[%clk 0:00:13]} 36. Kf2 {[%clk 0:00:11]}  Qf4+ {[%clk 0:00:13]} 37. Ke2 {[%clk 0:00:10]}  Qxe4+ {[%clk 0:00:13]} 38. Kd1 {[%clk 0:00:08]}  Rd6+ {[%clk 0:00:13]} 39. Kc1 {[%clk 0:00:08]}  Qe3+ {[%clk 0:00:10]} 40. Kb1 {[%clk 0:00:09]}  Qd3+ {[%clk 0:00:11]} 41. Ka2 {[%clk 0:00:09]}  Qc4+ {[%clk 0:00:11]} 42. Ka3 {[%clk 0:00:08]}  Qf7 {[%clk 0:00:11]} 0-1


[Site "https://www.chess.com"]

[Event "Titled Tuesday Blitz October 11 Early 2022"]
[White "Tarasova, Viktoriya"]
[Black "Hanley, Craig A"]
[WhiteFideId "4175840"]
[BlackFideId "408514"]
[WhiteElo "2182"]
[BlackElo "2439"]
[Result "1/2-1/2"]
[Round "10"]
[TimeControl "180+1"]
[Date "2022.10.12"]
[WhiteClock "0:00:06"]
[BlackClock "0:00:02"]

1. d4 {[%clk 0:03:00]}  Nf6 {[%clk 0:02:58]} 2. c4 {[%clk 0:03:00]}  g6 {[%clk 0:02:58]} 3. Nc3 {[%clk 0:03:01]}  d5 {[%clk 0:02:58]} 4. cxd5 {[%clk 0:03:01]}  Nxd5 {[%clk 0:02:59]} 5. g3 {[%clk 0:03:01]}  Bg7 {[%clk 0:02:53]} 6. Bg2 {[%clk 0:03:01]}  Nxc3 {[%clk 0:02:34]} 7. bxc3 {[%clk 0:03:01]}  c5 {[%clk 0:02:34]} 8. e3 {[%clk 0:03:01]}  O-O {[%clk 0:02:32]} 9. Ne2 {[%clk 0:03:01]}  Nc6 {[%clk 0:02:25]} 10. O-O {[%clk 0:03:01]}  Qc7 {[%clk 0:02:18]} 11. d5 {[%clk 0:03:00]}  Rd8 {[%clk 0:02:11]} 12. Qc2 {[%clk 0:03:00]}  Na5 {[%clk 0:02:07]} 13. e4 {[%clk 0:02:59]}  b5 {[%clk 0:02:01]} 14. Bf4 {[%clk 0:02:56]}  Qb6 {[%clk 0:01:56]} 15. Rab1 {[%clk 0:02:49]}  a6 {[%clk 0:01:52]} 16. Be3 {[%clk 0:02:50]}  Nc4 {[%clk 0:01:48]} 17. Bg5 {[%clk 0:02:37]}  Qc7 {[%clk 0:01:44]} 18. Rbd1 {[%clk 0:02:27]}  h6 {[%clk 0:01:24]} 19. Bc1 {[%clk 0:02:26]}  e6 {[%clk 0:01:16]} 20. Nf4 {[%clk 0:02:22]}  e5 {[%clk 0:00:56]} 21. Nd3 {[%clk 0:02:22]}  Bg4 {[%clk 0:00:52]} 22. f3 {[%clk 0:02:20]}  Bd7 {[%clk 0:00:51]} 23. f4 {[%clk 0:02:19]}  Rac8 {[%clk 0:00:35]} 24. f5 {[%clk 0:02:18]}  b4 {[%clk 0:00:35]} 25. Nf2 {[%clk 0:01:40]}  Qa5 {[%clk 0:00:32]} 26. Ng4 {[%clk 0:01:31]}  g5 {[%clk 0:00:32]} 27. Qe2 {[%clk 0:00:45]}  Nd6 {[%clk 0:00:23]} 28. c4 {[%clk 0:00:39]}  f6 {[%clk 0:00:15]} 29. h4 {[%clk 0:00:38]}  Nf7 {[%clk 0:00:15]} 30. hxg5 {[%clk 0:00:36]}  Nxg5 {[%clk 0:00:15]} 31. Bxg5 {[%clk 0:00:34]}  hxg5 {[%clk 0:00:16]} 32. Bf3 {[%clk 0:00:25]}  Qb6 {[%clk 0:00:16]} 33. Kg2 {[%clk 0:00:24]}  a5 {[%clk 0:00:17]} 34. Rh1 {[%clk 0:00:25]}  Be8 {[%clk 0:00:16]} 35. Ne3 {[%clk 0:00:22]}  b3 {[%clk 0:00:16]} 36. Rb1 {[%clk 0:00:17]}  a4 {[%clk 0:00:16]} 37. Bh5 {[%clk 0:00:17]}  Rb8 {[%clk 0:00:16]} 38. Bxe8 {[%clk 0:00:17]}  Rxe8 {[%clk 0:00:17]} 39. Qh5 {[%clk 0:00:17]}  Qb4 {[%clk 0:00:17]} 40. Qh7+ {[%clk 0:00:17]}  Kf8 {[%clk 0:00:17]} 41. Rb2 {[%clk 0:00:06]}  Qc3 {[%clk 0:00:17]} 42. Re2 {[%clk 0:00:07]}  bxa2 {[%clk 0:00:16]} 43. Qg6 {[%clk 0:00:07]}  Rb2 {[%clk 0:00:15]} 44. Rh7 {[%clk 0:00:08]}  Rxe2+ {[%clk 0:00:15]} 45. Kh3 {[%clk 0:00:08]}  Re7 {[%clk 0:00:15]} 46. Rxg7 {[%clk 0:00:09]}  Rxg7 {[%clk 0:00:15]} 47. Qxf6+ {[%clk 0:00:09]}  Kg8 {[%clk 0:00:16]} 48. Qd8+ {[%clk 0:00:07]}  Kh7 {[%clk 0:00:16]} 49. Ng4 {[%clk 0:00:07]}  Rh2+ {[%clk 0:00:08]} 50. Kxh2 {[%clk 0:00:07]}  Rb7 {[%clk 0:00:02]} 51. Nf6+ {[%clk 0:00:06]}  Kg7 {[%clk 0:00:02]} 52. Ne8+ {[%clk 0:00:06]}  Kh7 {[%clk 0:00:01]} 53. Nf6+ {[%clk 0:00:06]}  Kg7 {[%clk 0:00:01]} 54. Ne8+ {[%clk 0:00:06]}  Kh7 {[%clk 0:00:02]} 55. Nf6+ {[%clk 0:00:06]} 1/2-1/2


[Site "https://www.chess.com"]

[Event "Titled Tuesday Blitz October 11 Early 2022"]
[White "Terry, Renato"]
[Black "Ibarra Jerez, Jose Carlos"]
[WhiteFideId "3803457"]
[BlackFideId "2226332"]
[WhiteElo "2577"]
[BlackElo "2627"]
[Result "1/2-1/2"]
[Round "10"]
[TimeControl "180+1"]
[Date "2022.10.11"]
[WhiteClock "0:03:01"]
[BlackClock "0:02:54"]

1. d4 {[%clk 0:03:00]}  Nf6 {[%clk 0:02:59]} 2. Nf3 {[%clk 0:03:01]}  g6 {[%clk 0:02:59]} 3. Bg5 {[%clk 0:03:01]}  Bg7 {[%clk 0:03:00]} 4. c3 {[%clk 0:03:01]}  O-O {[%clk 0:03:00]} 5. Nbd2 {[%clk 0:03:02]}  d6 {[%clk 0:03:00]} 6. e4 {[%clk 0:03:02]}  c5 {[%clk 0:03:00]} 7. dxc5 {[%clk 0:03:03]}  dxc5 {[%clk 0:03:00]} 8. Bc4 {[%clk 0:03:03]}  Nc6 {[%clk 0:03:00]} 9. Qe2 {[%clk 0:03:03]}  h6 {[%clk 0:02:57]} 10. Bh4 {[%clk 0:03:01]}  Qc7 {[%clk 0:02:54]} 1/2-1/2


[Site "https://www.chess.com"]

[Event "Titled Tuesday Blitz October 11 Early 2022"]
[White "Urazayev, Arystanbek"]
[Black "Kamsky, Gata"]
[WhiteFideId "13709810"]
[BlackFideId "2000024"]
[WhiteElo "2441"]
[BlackElo "2666"]
[Result "1/2-1/2"]
[Round "10"]
[TimeControl "180+1"]
[Date "2022.10.11"]
[WhiteClock "0:00:09"]
[BlackClock "0:00:09"]

1. d4 {[%clk 0:03:00]}  f5 {[%clk 0:02:56]} 2. e4 {[%clk 0:02:59]}  fxe4 {[%clk 0:02:54]} 3. Nc3 {[%clk 0:03:00]}  Nf6 {[%clk 0:02:46]} 4. Bg5 {[%clk 0:02:59]}  g6 {[%clk 0:02:40]} 5. h4 {[%clk 0:02:59]}  d5 {[%clk 0:02:04]} 6. h5 {[%clk 0:02:58]}  Rg8 {[%clk 0:02:03]} 7. hxg6 {[%clk 0:02:47]}  hxg6 {[%clk 0:02:02]} 8. f3 {[%clk 0:02:38]}  Bf5 {[%clk 0:01:41]} 9. g4 {[%clk 0:02:39]}  Be6 {[%clk 0:01:38]} 10. Bxf6 {[%clk 0:02:30]}  exf6 {[%clk 0:01:37]} 11. fxe4 {[%clk 0:02:31]}  Bb4 {[%clk 0:01:29]} 12. Qd3 {[%clk 0:02:27]}  dxe4 {[%clk 0:01:27]} 13. Qb5+ {[%clk 0:02:09]}  Nc6 {[%clk 0:01:25]} 14. O-O-O {[%clk 0:02:09]}  Bxc3 {[%clk 0:01:22]} 15. bxc3 {[%clk 0:02:08]}  Qd5 {[%clk 0:01:20]} 16. Qxd5 {[%clk 0:01:51]}  Bxd5 {[%clk 0:01:19]} 17. c4 {[%clk 0:01:52]}  Bf7 {[%clk 0:01:15]} 18. c3 {[%clk 0:01:42]}  O-O-O {[%clk 0:01:05]} 19. Rh7 {[%clk 0:01:42]}  Be6 {[%clk 0:01:02]} 20. Be2 {[%clk 0:01:28]}  Rd7 {[%clk 0:00:51]} 21. Rh6 {[%clk 0:01:23]}  Na5 {[%clk 0:00:46]} 22. d5 {[%clk 0:01:22]}  Bf7 {[%clk 0:00:45]} 23. Rf1 {[%clk 0:01:20]}  Rd6 {[%clk 0:00:41]} 24. Nh3 {[%clk 0:01:17]}  c6 {[%clk 0:00:36]} 25. Ng5 {[%clk 0:00:55]}  fxg5 {[%clk 0:00:33]} 26. Rxf7 {[%clk 0:00:56]}  cxd5 {[%clk 0:00:34]} 27. cxd5 {[%clk 0:00:50]}  Rxd5 {[%clk 0:00:32]} 28. Rhh7 {[%clk 0:00:49]}  Kb8 {[%clk 0:00:29]} 29. Re7 {[%clk 0:00:48]}  Rc8 {[%clk 0:00:27]} 30. c4 {[%clk 0:00:48]}  Rdc5 {[%clk 0:00:18]} 31. Kd2 {[%clk 0:00:42]}  R5c7 {[%clk 0:00:17]} 32. Rxc7 {[%clk 0:00:35]}  Rxc7 {[%clk 0:00:17]} 33. Rh8+ {[%clk 0:00:32]}  Rc8 {[%clk 0:00:17]} 34. Rxc8+ {[%clk 0:00:33]}  Kxc8 {[%clk 0:00:17]} 35. Ke3 {[%clk 0:00:34]}  Kd7 {[%clk 0:00:17]} 36. Kxe4 {[%clk 0:00:33]}  Kd6 {[%clk 0:00:17]} 37. c5+ {[%clk 0:00:32]}  Kxc5 {[%clk 0:00:17]} 38. Ke5 {[%clk 0:00:33]}  Nc6+ {[%clk 0:00:16]} 39. Kf6 {[%clk 0:00:32]}  Nd4 {[%clk 0:00:15]} 40. Bd1 {[%clk 0:00:33]}  b5 {[%clk 0:00:14]} 41. Kxg5 {[%clk 0:00:31]}  a5 {[%clk 0:00:12]} 42. Kxg6 {[%clk 0:00:32]}  Nc6 {[%clk 0:00:11]} 43. Kf6 {[%clk 0:00:32]}  Kd4 {[%clk 0:00:10]} 44. g5 {[%clk 0:00:31]}  Ne5 {[%clk 0:00:11]} 45. Be2 {[%clk 0:00:28]}  b4 {[%clk 0:00:11]} 46. Bd1 {[%clk 0:00:28]}  Ke4 {[%clk 0:00:08]} 47. Ba4 {[%clk 0:00:28]}  Kd4 {[%clk 0:00:08]} 48. Bc2 {[%clk 0:00:28]}  Kd5 {[%clk 0:00:08]} 49. Kf5 {[%clk 0:00:21]}  Kd4 {[%clk 0:00:08]} 50. Ba4 {[%clk 0:00:21]}  Kd5 {[%clk 0:00:08]} 51. Bd1 {[%clk 0:00:21]}  Kd4 {[%clk 0:00:08]} 52. Bb3 {[%clk 0:00:21]}  Nf3 {[%clk 0:00:08]} 53. Kf4 {[%clk 0:00:17]}  Nxg5 {[%clk 0:00:08]} 54. Kxg5 {[%clk 0:00:18]}  Kc3 {[%clk 0:00:08]} 55. Kf4 {[%clk 0:00:17]}  Kb2 {[%clk 0:00:09]} 56. Ke3 {[%clk 0:00:10]}  a4 {[%clk 0:00:09]} 57. Bf7 {[%clk 0:00:10]}  b3 {[%clk 0:00:09]} 58. axb3 {[%clk 0:00:09]}  axb3 {[%clk 0:00:09]} 59. Bxb3 {[%clk 0:00:09]} 1/2-1/2


[Site "https://www.chess.com"]

[Event "Titled Tuesday Blitz October 11 Early 2022"]
[White "Zaloznyy, Mike"]
[Black "Pinheiro, Iung Alicio de O."]
[WhiteFideId "2023075"]
[BlackFideId "2104350"]
[WhiteElo "2126"]
[BlackElo "2283"]
[Result "0-1"]
[Round "10"]
[TimeControl "180+1"]
[Date "2022.10.12"]
[WhiteClock "0:00:02"]
[BlackClock "0:00:12"]

1. Nf3 {[%clk 0:02:40]}  d5 {[%clk 0:02:58]} 2. e3 {[%clk 0:02:41]}  Nf6 {[%clk 0:02:56]} 3. b3 {[%clk 0:02:40]}  Bf5 {[%clk 0:02:48]} 4. Bb2 {[%clk 0:02:40]}  e6 {[%clk 0:02:49]} 5. c4 {[%clk 0:02:37]}  h6 {[%clk 0:02:46]} 6. Nc3 {[%clk 0:02:34]}  c6 {[%clk 0:02:45]} 7. Be2 {[%clk 0:02:22]}  Be7 {[%clk 0:02:42]} 8. O-O {[%clk 0:02:22]}  O-O {[%clk 0:02:42]} 9. a4 {[%clk 0:02:17]}  a5 {[%clk 0:02:38]} 10. Qc1 {[%clk 0:02:12]}  Na6 {[%clk 0:02:36]} 11. Ba3 {[%clk 0:02:11]}  Nb4 {[%clk 0:02:36]} 12. Na2 {[%clk 0:02:07]}  Nd3 {[%clk 0:02:22]} 13. Bxd3 {[%clk 0:02:03]}  Bxd3 {[%clk 0:02:23]} 14. Bxe7 {[%clk 0:02:03]}  Qxe7 {[%clk 0:02:22]} 15. Re1 {[%clk 0:01:47]}  e5 {[%clk 0:02:19]} 16. cxd5 {[%clk 0:01:43]}  Nxd5 {[%clk 0:02:10]} 17. e4 {[%clk 0:01:26]}  Nf4 {[%clk 0:02:05]} 18. Nc3 {[%clk 0:01:17]}  Rad8 {[%clk 0:02:00]} 19. Re3 {[%clk 0:01:12]}  Rd7 {[%clk 0:01:51]} 20. g3 {[%clk 0:01:08]}  Ng6 {[%clk 0:01:24]} 21. h4 {[%clk 0:00:50]}  Rfd8 {[%clk 0:01:21]} 22. Qa3 {[%clk 0:00:41]}  Qe6 {[%clk 0:01:09]} 23. Rae1 {[%clk 0:00:32]}  b6 {[%clk 0:00:53]} 24. Nd5 {[%clk 0:00:23]}  cxd5 {[%clk 0:00:24]} 25. Rxd3 {[%clk 0:00:23]}  dxe4 {[%clk 0:00:24]} 26. Rxd7 {[%clk 0:00:24]}  Rxd7 {[%clk 0:00:22]} 27. Rxe4 {[%clk 0:00:24]}  f5 {[%clk 0:00:23]} 28. Re3 {[%clk 0:00:21]}  e4 {[%clk 0:00:23]} 29. h5 {[%clk 0:00:21]}  Ne7 {[%clk 0:00:20]} 30. Qb2 {[%clk 0:00:18]}  Nd5 {[%clk 0:00:18]} 31. Nd4 {[%clk 0:00:17]}  Qf7 {[%clk 0:00:17]} 32. Re1 {[%clk 0:00:17]}  Nb4 {[%clk 0:00:18]} 33. Qc3 {[%clk 0:00:15]}  Qd5 {[%clk 0:00:17]} 34. Nb5 {[%clk 0:00:06]}  Qxd2 {[%clk 0:00:16]} 35. Qc8+ {[%clk 0:00:04]}  Kh7 {[%clk 0:00:15]} 36. Rc1 {[%clk 0:00:03]}  Nd3 {[%clk 0:00:13]} 37. Rc2 {[%clk 0:00:01]}  Qe1+ {[%clk 0:00:12]} 38. Kg2 {[%clk 0:00:01]}  Qd1 {[%clk 0:00:10]} 39. Qe8 {[%clk 0:00:02]}  Ne1+ {[%clk 0:00:10]} 40. Kh3 {[%clk 0:00:02]}  Qg4+ {[%clk 0:00:11]} 41. Kh2 {[%clk 0:00:01]}  Nxc2 {[%clk 0:00:11]} 42. Qxd7 {[%clk 0:00:01]}  Ne1 {[%clk 0:00:11]} 43. Qd2 {[%clk 0:00:02]}  Nf3+ {[%clk 0:00:11]} 44. Kg2 {[%clk 0:00:02]}  Nxd2 {[%clk 0:00:12]} 0-1


[Site "https://www.chess.com"]

[Event "Titled Tuesday Blitz October 11 Early 2022"]
[White "Zemlyanskii, Ivan"]
[Black "Aarav Dengla"]
[WhiteFideId "24249971"]
[BlackFideId "45059756"]
[WhiteElo "2107"]
[BlackElo "2257"]
[Result "1-0"]
[Round "10"]
[TimeControl "180+1"]
[Date "2022.10.12"]
[WhiteClock "0:00:24"]
[BlackClock "0:00:08"]

1. d4 {[%clk 0:02:59]}  d5 {[%clk 0:02:58]} 2. c4 {[%clk 0:02:59]}  c6 {[%clk 0:02:57]} 3. Nf3 {[%clk 0:02:58]}  Nf6 {[%clk 0:02:57]} 4. e3 {[%clk 0:02:58]}  e6 {[%clk 0:02:53]} 5. Bd3 {[%clk 0:02:58]}  Nbd7 {[%clk 0:02:53]} 6. O-O {[%clk 0:02:59]}  Bd6 {[%clk 0:02:51]} 7. Nbd2 {[%clk 0:02:59]}  O-O {[%clk 0:02:50]} 8. e4 {[%clk 0:02:59]}  dxe4 {[%clk 0:02:49]} 9. Nxe4 {[%clk 0:02:54]}  Nxe4 {[%clk 0:02:50]} 10. Bxe4 {[%clk 0:02:54]}  Nf6 {[%clk 0:02:50]} 11. Bc2 {[%clk 0:02:53]}  c5 {[%clk 0:02:51]} 12. dxc5 {[%clk 0:02:51]}  Bxc5 {[%clk 0:02:51]} 13. Qe2 {[%clk 0:02:52]}  Qe7 {[%clk 0:02:48]} 14. Bg5 {[%clk 0:02:51]}  h6 {[%clk 0:02:47]} 15. Bh4 {[%clk 0:02:48]}  Bd7 {[%clk 0:02:43]} 16. Ne5 {[%clk 0:02:42]}  Rfd8 {[%clk 0:02:34]} 17. Ng4 {[%clk 0:02:38]}  Bd4 {[%clk 0:02:31]} 18. Qd3 {[%clk 0:02:27]}  Qc5 {[%clk 0:02:07]} 19. b4 {[%clk 0:01:29]}  Qb6 {[%clk 0:01:53]} 20. Rad1 {[%clk 0:01:09]}  Bc6 {[%clk 0:01:41]} 21. Nxf6+ {[%clk 0:01:08]}  Bxf6 {[%clk 0:01:35]} 22. Qh7+ {[%clk 0:01:08]}  Kf8 {[%clk 0:01:36]} 23. Bxf6 {[%clk 0:00:46]}  gxf6 {[%clk 0:01:36]} 24. b5 {[%clk 0:00:45]}  Be8 {[%clk 0:01:28]} 25. Qxh6+ {[%clk 0:00:46]}  Ke7 {[%clk 0:01:27]} 26. Qf4 {[%clk 0:00:47]}  Qc5 {[%clk 0:01:22]} 27. h4 {[%clk 0:00:45]}  Bd7 {[%clk 0:00:44]} 28. Bb3 {[%clk 0:00:43]}  Rh8 {[%clk 0:00:41]} 29. Rd3 {[%clk 0:00:43]}  Rad8 {[%clk 0:00:38]} 30. Rfd1 {[%clk 0:00:41]}  Bc8 {[%clk 0:00:34]} 31. Rxd8 {[%clk 0:00:40]}  Rxd8 {[%clk 0:00:35]} 32. Rxd8 {[%clk 0:00:32]}  Kxd8 {[%clk 0:00:36]} 33. Qxf6+ {[%clk 0:00:32]}  Ke8 {[%clk 0:00:34]} 34. Qg5 {[%clk 0:00:32]}  Qd6 {[%clk 0:00:20]} 35. h5 {[%clk 0:00:27]}  Qd1+ {[%clk 0:00:20]} 36. Kh2 {[%clk 0:00:28]}  Qd6+ {[%clk 0:00:20]} 37. f4 {[%clk 0:00:28]}  Qe7 {[%clk 0:00:14]} 38. h6 {[%clk 0:00:23]}  f6 {[%clk 0:00:09]} 39. Qg8+ {[%clk 0:00:23]}  Qf8 {[%clk 0:00:09]} 40. h7 {[%clk 0:00:24]}  Ke7 {[%clk 0:00:08]} 41. h8=Q {[%clk 0:00:24]} 1-0


[Site "https://www.chess.com"]

[Event "Titled Tuesday Blitz October 11 Early 2022"]
[White "Aarav Dengla"]
[Black "Liu, Xiangyi"]
[WhiteFideId "45059756"]
[BlackFideId "8605718"]
[WhiteElo "2257"]
[BlackElo "2323"]
[Result "0-1"]
[Round "11"]
[TimeControl "180+1"]
[Date "2022.10.12"]
[WhiteClock "0:00:04"]
[BlackClock "0:00:28"]

1. e4 {[%clk 0:03:00]}  e6 {[%clk 0:02:59]} 2. d4 {[%clk 0:02:59]}  d5 {[%clk 0:03:00]} 3. exd5 {[%clk 0:03:00]}  exd5 {[%clk 0:03:00]} 4. Nf3 {[%clk 0:03:01]}  Bd6 {[%clk 0:03:01]} 5. c4 {[%clk 0:02:58]}  Nc6 {[%clk 0:03:00]} 6. Nc3 {[%clk 0:02:52]}  Nf6 {[%clk 0:02:58]} 7. c5 {[%clk 0:02:51]}  Be7 {[%clk 0:02:56]} 8. Bb5 {[%clk 0:02:51]}  O-O {[%clk 0:02:56]} 9. Bxc6 {[%clk 0:02:51]}  bxc6 {[%clk 0:02:57]} 10. Ne5 {[%clk 0:02:48]}  Qe8 {[%clk 0:02:57]} 11. Qe2 {[%clk 0:02:39]}  a5 {[%clk 0:02:57]} 12. O-O {[%clk 0:02:30]}  Ba6 {[%clk 0:02:56]} 13. Nd3 {[%clk 0:02:28]}  Ne4 {[%clk 0:02:24]} 14. Nxe4 {[%clk 0:02:19]}  dxe4 {[%clk 0:02:25]} 15. Qxe4 {[%clk 0:02:19]}  Bf6 {[%clk 0:02:25]} 16. Qf3 {[%clk 0:02:08]}  Bxd4 {[%clk 0:02:22]} 17. Re1 {[%clk 0:02:07]}  Qd7 {[%clk 0:02:17]} 18. Ne5 {[%clk 0:02:00]}  Qd5 {[%clk 0:01:36]} 19. Qg3 {[%clk 0:01:11]}  Rfe8 {[%clk 0:01:07]} 20. Bf4 {[%clk 0:01:09]}  Rad8 {[%clk 0:00:48]} 21. Rad1 {[%clk 0:01:00]}  Qxc5 {[%clk 0:00:43]} 22. Nf3 {[%clk 0:00:51]}  Rxe1+ {[%clk 0:00:39]} 23. Rxe1 {[%clk 0:00:50]}  Bxb2 {[%clk 0:00:33]} 24. Bxc7 {[%clk 0:00:49]}  Rc8 {[%clk 0:00:33]} 25. h4 {[%clk 0:00:33]}  Bc4 {[%clk 0:00:23]} 26. Be5 {[%clk 0:00:26]}  Bxe5 {[%clk 0:00:22]} 27. Rxe5 {[%clk 0:00:27]}  Qb4 {[%clk 0:00:18]} 28. h5 {[%clk 0:00:27]}  Bxa2 {[%clk 0:00:15]} 29. h6 {[%clk 0:00:26]}  g6 {[%clk 0:00:14]} 30. Qg5 {[%clk 0:00:17]}  a4 {[%clk 0:00:12]} 31. Qf6 {[%clk 0:00:15]}  Qf8 {[%clk 0:00:12]} 32. Ng5 {[%clk 0:00:15]}  Qxh6 {[%clk 0:00:09]} 33. Re3 {[%clk 0:00:15]}  Qg7 {[%clk 0:00:09]} 34. Qe7 {[%clk 0:00:13]}  Bb3 {[%clk 0:00:09]} 35. Qb4 {[%clk 0:00:12]}  h6 {[%clk 0:00:09]} 36. Ne4 {[%clk 0:00:11]}  Kh7 {[%clk 0:00:08]} 37. Nd6 {[%clk 0:00:11]}  Rc7 {[%clk 0:00:08]} 38. Ne8 {[%clk 0:00:11]}  Qa1+ {[%clk 0:00:08]} 39. Re1 {[%clk 0:00:11]}  Rb7 {[%clk 0:00:07]} 40. Qd2 {[%clk 0:00:04]}  Qh8 {[%clk 0:00:06]} 41. Qf4 {[%clk 0:00:03]}  Be6 {[%clk 0:00:05]} 42. Nf6+ {[%clk 0:00:04]}  Kg7 {[%clk 0:00:06]} 43. Qe5 {[%clk 0:00:05]}  Qb8 {[%clk 0:00:05]} 44. Ne8+ {[%clk 0:00:04]}  Kf8 {[%clk 0:00:06]} 45. Qh8+ {[%clk 0:00:03]}  Ke7 {[%clk 0:00:06]} 46. Qxh6 {[%clk 0:00:03]}  Kxe8 {[%clk 0:00:05]} 47. Qh8+ {[%clk 0:00:03]}  Kd7 {[%clk 0:00:05]} 48. Qd4+ {[%clk 0:00:03]}  Qd6 {[%clk 0:00:05]} 49. Qxa4 {[%clk 0:00:04]}  Rb5 {[%clk 0:00:04]} 50. Qa7+ {[%clk 0:00:03]}  Qc7 {[%clk 0:00:05]} 51. Qe3 {[%clk 0:00:03]}  Rd5 {[%clk 0:00:05]} 52. Rc1 {[%clk 0:00:03]}  Qd6 {[%clk 0:00:05]} 53. Qf3 {[%clk 0:00:03]}  c5 {[%clk 0:00:05]} 54. Qe3 {[%clk 0:00:04]}  Ke7 {[%clk 0:00:05]} 55. Qg3 {[%clk 0:00:04]}  Qxg3 {[%clk 0:00:05]} 56. fxg3 {[%clk 0:00:05]}  Kd6 {[%clk 0:00:06]} 57. Kh2 {[%clk 0:00:04]}  Rd2 {[%clk 0:00:07]} 58. g4 {[%clk 0:00:02]}  Bd5 {[%clk 0:00:07]} 59. Kg3 {[%clk 0:00:03]}  Rxg2+ {[%clk 0:00:08]} 60. Kf4 {[%clk 0:00:03]}  Rf2+ {[%clk 0:00:09]} 61. Kg5 {[%clk 0:00:04]}  Ke5 {[%clk 0:00:09]} 62. Kh6 {[%clk 0:00:04]}  c4 {[%clk 0:00:09]} 63. g5 {[%clk 0:00:05]}  Be4 {[%clk 0:00:08]} 64. Kg7 {[%clk 0:00:05]}  Bd3 {[%clk 0:00:08]} 65. Re1+ {[%clk 0:00:05]}  Kd4 {[%clk 0:00:08]} 66. Re8 {[%clk 0:00:06]}  Rf5 {[%clk 0:00:09]} 67. Rd8+ {[%clk 0:00:07]}  Kc3 {[%clk 0:00:10]} 68. Kh6 {[%clk 0:00:06]}  Kc2 {[%clk 0:00:10]} 69. Rc8 {[%clk 0:00:05]}  c3 {[%clk 0:00:10]} 70. Rc7 {[%clk 0:00:06]}  Rf2 {[%clk 0:00:11]} 71. Kg7 {[%clk 0:00:06]}  Kd2 {[%clk 0:00:11]} 72. Rd7 {[%clk 0:00:06]}  c2 {[%clk 0:00:12]} 73. Rc7 {[%clk 0:00:06]}  c1=Q {[%clk 0:00:12]} 74. Rxc1 {[%clk 0:00:07]}  Kxc1 {[%clk 0:00:13]} 75. Kh7 {[%clk 0:00:07]}  Kd2 {[%clk 0:00:14]} 76. Kg7 {[%clk 0:00:07]}  Rf5 {[%clk 0:00:15]} 77. Kh6 {[%clk 0:00:06]}  Ke3 {[%clk 0:00:16]} 78. Kg7 {[%clk 0:00:05]}  Kf3 {[%clk 0:00:17]} 79. Kh6 {[%clk 0:00:04]}  Kg3 {[%clk 0:00:18]} 80. Kg7 {[%clk 0:00:05]}  Kg4 {[%clk 0:00:18]} 81. Kh6 {[%clk 0:00:05]}  Bc4 {[%clk 0:00:19]} 82. Kg7 {[%clk 0:00:05]}  Rxg5 {[%clk 0:00:20]} 83. Kg8 {[%clk 0:00:06]}  f5+ {[%clk 0:00:21]} 84. Kg7 {[%clk 0:00:06]}  f4 {[%clk 0:00:22]} 85. Kh6 {[%clk 0:00:06]}  f3 {[%clk 0:00:23]} 86. Kg7 {[%clk 0:00:07]}  f2 {[%clk 0:00:24]} 87. Kh8 {[%clk 0:00:06]}  Ra5 {[%clk 0:00:24]} 88. Kh7 {[%clk 0:00:07]}  g5 {[%clk 0:00:25]} 89. Kg7 {[%clk 0:00:07]}  Ra6 {[%clk 0:00:25]} 90. Kh7 {[%clk 0:00:06]}  Be2 {[%clk 0:00:26]} 91. Kh8 {[%clk 0:00:05]}  f1=Q {[%clk 0:00:26]} 92. Kg7 {[%clk 0:00:06]}  Qb1 {[%clk 0:00:27]} 93. Kg8 {[%clk 0:00:04]}  Qb7 {[%clk 0:00:28]} 0-1


[Site "https://www.chess.com"]